[Event "25th Zadar Open 2018"]
[Site "Zadar"]
[Date "2018.12.19"]
[Round "6"]
[White "Kurayan, Ruslan"]
[Black "Chan, Kim Yew"]
[Result "1-0"]
[ECO "A36"]
[WhiteElo "2391"]
[BlackElo "2175"]
[Annotator "NA"]
[PlyCount "135"]
[EventDate "2018.12.15"]
[EventType "swiss"]
[EventCountry "CRO"]
[SourceTitle "playchess.com"]
[Source "ChessBase"]
[SourceQuality "1"]
[TimeControl "40/5400+30:1800+30"]

1. c4 c5 2. Nc3 g6 3. g3 Bg7 4. Bg2 Nc6 5. a3 e6 6. b4 Nxb4 7. axb4 cxb4 8. d4 bxc3 9. e3 {A36: Symmetrical English vs ...g6: 4 Bg2 Bg7} Ne7 10. Ne2 d5 {LiveBook: 13 Games} 11. Qb3 (11. Ba3 dxc4 12. Qa4+ Bd7 13. Qxc4 Rc8 14. Qb3 Qb6 15. Qxb6 axb6 16. Bxb7 Rc4 {0-1 (37) Gofshtein,L (2468)-Sutovsky,E (2684) Israel 2013}) 11... O-O 12. Nxc3 dxc4 $146 ({Predecessor:} 12... Re8 13. O-O b6 14. cxd5 exd5 15. Nxd5 Nxd5 16. Qxd5 Qxd5 17. Bxd5 Bh3 18. Bxa8 Bxf1 19. Bd5 Bh3 20. Rxa7 Be6 21. Bxe6 Rxe6 22. Ra8+ {1-0 (22) Buechmann,O (2147)-Haerig,W (2045) Leipzig 2015}) 13. Qxc4 a6 14. Qb3 Rb8 15. Rxa6 (15. Ba3 $11) 15... bxa6 16. Qxb8 Bd7 17. Qa7 Qc8 18. O-O Nc6 19. Qc5 Nxd4 20. exd4 Qxc5 21. dxc5 Bxc3 22. c6 Bc8 {[#]} 23. c7 $1 e5 24. Ba3 Re8 25. Rd1 Bd4 26. Rb1 Kg7 $2 (26... e4 $16 {is a better defense.}) 27. Rb8 Rg8 28. Bd6 a5 29. Bb7 Be6 ({Don't go for} 29... Bxb7 $2 30. Rxb7 Rc8 31. Rb8 $18) 30. Kg2 a4 31. Bc6 a3 32. Bxa3 Ba7 33. Bd6 f6 34. f3 Bxb8 35. cxb8=Q Rxb8 36. Bxb8 g5 37. Be8 Bd5 38. Kf2 Kf8 39. Bh5 Ke7 40. Bg4 Kf7 41. Bf5 h6 42. Bd6 Kg7 43. Ke3 Bc4 44. Kd2 Bd5 45. Be4 Be6 46. Kc3 Kf7 47. g4 Kg7 48. Kb4 Bf7 49. Kc5 h5 50. Be7 hxg4 51. fxg4 Be6 52. Bf5 Bb3 53. Kd6 Bc4 54. Bd8 Be2 55. Ke7 Bc4 56. Ba5 Ba6 57. Be1 Be2 58. h4 gxh4 59. Bxh4 e4 60. Bxf6+ Kg8 61. g5 e3 62. Bd4 Bh5 63. Bxe3 Kg7 64. Bd4+ Kg8 65. Kf6 Be8 66. g6 Kh8 67. Ke7+ Kg8 68. Be6+ 1-0

[Event "25th Zadar Open 2018"]
[Site "Zadar"]
[Date "2018.12.19"]
[Round "6"]
[White "Muha, Miljenko"]
[Black "Mohite, Ranveer"]
[Result "1-0"]
[ECO "D94"]
[WhiteElo "2334"]
[BlackElo "2236"]
[Annotator "NA"]
[PlyCount "129"]
[EventDate "2018.12.15"]
[EventType "swiss"]
[EventCountry "CRO"]
[SourceTitle "playchess.com"]
[Source "ChessBase"]
[SourceQuality "1"]
[TimeControl "40/5400+30:1800+30"]

1. d4 Nf6 2. Nf3 g6 3. c4 Bg7 4. e3 O-O 5. Be2 c6 6. O-O d5 7. Nc3 c5 {D94: Grünfeld: 4 Nf3 Bg7 5 e3} (7... Ne4 8. a4 b6 9. a5 Ba6 10. Nxe4 dxe4 11. Ng5 e5 12. Nxe4 exd4 13. exd4 Bxd4 14. Bg5 f6 15. Be3 c5 16. Bxd4 cxd4 {1-0 (40) Bu,X (2712)-Van Wely,L (2642) Batumi 2018}) 8. dxc5 dxc4 9. Qa4 Qc7 $146 ({Predecessor:} 9... Nc6 10. Bxc4 Nd7 11. Qa3 Qa5 12. Qxa5 Nxa5 13. Be2 Nxc5 14. Bd2 Nc6 15. Rfd1 {1-0 (49) Andueza Quezada,D (2176)-Morales Garcia,H (2087) Santiago de Chile 2008}) 10. Qxc4 Be6 11. Qh4 Bd7 12. e4 Nc6 (12... Qxc5 $16 13. e5 Ng4) 13. Bh6 Bg4 14. Bxg7 Kxg7 15. Nd5 Nxd5 (15... Qd8 $16 {was worth a try.}) 16. exd5 ({But not} 16. Qxg4 $6 Nf6 $14) 16... Ne5 17. Ng5 h5 (17... h6 $142 18. Bxg4 hxg5) 18. Bxg4 Nxg4 19. Ne4 (19. Rfe1 $18) 19... Qe5 20. Nc3 Rac8 21. Rae1 Qf5 22. h3 Nf6 23. Rxe7 Rxc5 24. Rxb7 Rfc8 25. Rxa7 Rc4 26. Qg3 Nxd5 27. Nxd5 Qxd5 28. Re1 h4 29. Qe3 R8c6 (29... Rb4 $16) 30. b3 Rc2 31. Ra4 ({Better is} 31. Rf1) 31... R2c3 $2 (31... Re6 $16 {keeps fighting.} 32. Re4 Rxe4 33. Qxe4 {[%mdl 64] Double Attack} Qd2) 32. Qd4+ Qxd4 33. Rxd4 g5 34. Rd2 Kg6 35. Rb2 f5 36. b4 g4 37. hxg4 fxg4 38. b5 Rb6 39. a4 Ra3 40. Rb4 Kf5 41. Rc1 g3 42. Rxh4 Rd6 43. fxg3 Rd2 44. Rf4+ Ke5 45. Kh2 Raa2 46. Rb4 Rxg2+ 47. Kh3 Rh2+ 48. Kg4 Rh8 49. Rc5+ Kd6 50. Rg5 Ra8 51. b6 R2xa4 52. Rxa4 Rxa4+ 53. Kh5 Rb4 54. Rg6+ Ke7 55. g4 Rb1 56. Rc6 Kf7 57. Kg5 Rb5+ 58. Kh6 (58. Kf4 $18 Ke7 59. g5) 58... Rb4 59. Rc7+ Kf6 60. g5+ Kf5 61. Rf7+ Kg4 62. b7 Rb5 63. g6 Rb6 64. Kh7 Kg5 65. g7 1-0

[Event "25th Zadar Open 2018"]
[Site "Zadar"]
[Date "2018.12.19"]
[Round "6"]
[White "Samani, Yamac"]
[Black "Karthik Kumar Pradeep"]
[Result "1/2-1/2"]
[ECO "C00"]
[WhiteElo "2267"]
[BlackElo "2230"]
[Annotator "NA"]
[PlyCount "84"]
[EventDate "2018.12.15"]
[EventType "swiss"]
[EventCountry "CRO"]
[SourceTitle "playchess.com"]
[Source "ChessBase"]
[SourceQuality "1"]
[TimeControl "40/5400+30:1800+30"]

1. e4 c5 2. Nf3 e6 3. g3 Nc6 4. Bg2 Nf6 5. Qe2 e5 6. O-O Be7 7. c3 d6 8. d3 O-O 9. a3 {C00: French: Unusual White 2nd moves} (9. Na3 Re8 10. Nc4 Bf8 11. Bg5 h6 12. Bxf6 Qxf6 13. Ne3 Qd8 14. Nd2 g6 15. f4 exf4 16. gxf4 Bg7 {1-0 (38) Demchenko,A (2679)-Kobalia,M (2620) Sochi 2018}) 9... h6 10. b4 a6 $146 ({Predecessor:} 10... b5 11. a4 Qb6 12. axb5 Qxb5 {1-0 (60) Schwabeneder,F (2420)-Koller,H (2163) Ansfelden 2018}) 11. Nbd2 Re8 12. Bb2 Bf8 13. Rfe1 Rb8 14. Rac1 Bd7 15. Nc4 b5 16. Ne3 g6 17. Nd2 a5 18. bxa5 Qxa5 19. f4 exf4 20. gxf4 Bg7 21. Rf1 Qd8 22. d4 $11 Qb6 23. Qd3 cxd4 24. cxd4 Ng4 25. Nd5 Bxd4+ 26. Bxd4 Qxd4+ 27. Qxd4 Nxd4 28. h3 Ne2+ 29. Kh1 Be6 30. hxg4 Bxd5 31. exd5 Nxc1 32. Rxc1 f5 33. gxf5 gxf5 34. Bh3 Re2 35. Nf3 Rf2 36. Rc3 b4 37. Rb3 Ra8 38. axb4 Ra1+ 39. Ng1 Raa2 40. Nf3 Ra1+ 41. Ng1 Raa2 42. Nf3 Ra1+ 1/2-1/2

[Event "25th Zadar Open 2018"]
[Site "Zadar"]
[Date "2018.12.19"]
[Round "6"]
[White "Cebalo, Miso"]
[Black "Blagojevic, Tijana"]
[Result "1/2-1/2"]
[ECO "A11"]
[WhiteElo "2262"]
[BlackElo "2208"]
[Annotator "NA"]
[PlyCount "73"]
[EventDate "2018.12.15"]
[EventType "swiss"]
[EventCountry "CRO"]
[SourceTitle "playchess.com"]
[Source "ChessBase"]
[SourceQuality "1"]
[TimeControl "40/5400+30:1800+30"]

{[%evp 22,53,-8,-34,37,41,56,-99,72,80,105,98,32767,32767,32767,105,100,0,14,10,79,83,124,119,106,0,67,50,71,-88,-75,-89,-83,-90]} 1. Nf3 d5 2. c4 c6 3. e3 Nf6 4. Nc3 e6 5. Qc2 {A11: English Opening: 1...c6} Bd6 6. b3 O-O 7. Bb2 e5 8. cxd5 cxd5 9. Nb5 Nc6 10. Nxd6 Qxd6 11. Bb5 Nb4 12. Qc1 $1 Bd7 (12... Re8 $15 13. O-O Bd7) 13. Bxe5 Qb6 {[#]} 14. Be2 $2 $146 {[#]} (14. Bf1 $1 $14) 14... Rac8 $2 (14... Rfc8 $1 $17 {[%cal Rc8c1] keeps the pressure on.} 15. Bc3 Bb5) 15. Bc3 Bb5 {[#]} 16. Qb2 $1 a5 17. Bxb4 axb4 18. Nd4 Bxe2 19. Kxe2 (19. Nxe2 $16 Qb5 20. Nd4) 19... Qa6+ 20. Ke1 Rc5 (20... Rfe8 $11) 21. f3 Nd7 {[#]} 22. Nf5 $1 f6 23. f4 ({White should play} 23. d4 $16 Ra5 24. Kf2) 23... Qd3 (23... Ra5 $11) 24. Nd4 Qe4 25. Kf2 {[#]} (25. Rg1 $14 {keeps the upper hand.}) 25... Ne5 $1 26. fxe5 fxe5+ {Discovered Attack (Double check)} 27. Kg1 $17 ({Don't blunder} 27. Nf3 $2 Rc2 $19) 27... exd4 28. Qxd4 Rc2 29. h3 Qxd4 30. exd4 Rxd2 31. Kh2 Rff2 32. Rhg1 Rxd4 33. Rac1 h6 34. Rgd1 Re4 35. Rxd5 Ree2 36. Rg1 Rxa2 37. Rd4 1/2-1/2

[Event "25th Zadar Open 2018"]
[Site "Zadar"]
[Date "2018.12.19"]
[Round "6"]
[White "Jeet, Jain"]
[Black "Mendonca, Leon Luke"]
[Result "0-1"]
[ECO "B50"]
[WhiteElo "2212"]
[BlackElo "2350"]
[Annotator "NA"]
[PlyCount "78"]
[EventDate "2018.12.15"]
[EventType "swiss"]
[EventCountry "CRO"]
[SourceTitle "playchess.com"]
[Source "ChessBase"]
[SourceQuality "1"]
[TimeControl "40/5400+30:1800+30"]

{[%evp 20,64,0,-22,-13,-48,-22,-31,-15,-16,-12,-47,-22,-61,32767,-161,-170,-157,-170,-279,-319,-299,-325,-428,32767,32767,32767,32767,32767,32767,-277,-268,-275,-274,-274,32767,32767,-407,-331,-366,-355,-415,-466,-466,-504,-758,-764]} 1. e4 c5 2. Nf3 d6 3. c3 Nf6 4. Be2 g6 5. O-O Bg7 6. Bb5+ Nc6 7. d4 {B50: Sicilian: 2...d6, Miscellaneous} Bd7 8. Re1 O-O 9. Bf1 cxd4 10. cxd4 Bg4 11. d5 Ne5 {LiveBook: 18 Games} 12. h3 Bxf3 13. gxf3 Rc8 14. Nc3 Nfd7 15. Nb5 $146 ({Predecessor:} 15. f4 Nc4 16. Bxc4 Rxc4 {0-1 (34) Julia,E (2360)-Flores,D (2568) Buenos Aires 2017}) 15... Qa5 16. Nd4 Nc4 17. b3 (17. Nb3 $15 Qa4 18. Qe2) 17... Bxd4 $1 18. Qxd4 Qxe1 19. bxc4 (19. Kg2 $17 {was forced.} Qb4 20. Bxc4) 19... Ne5 20. Kg2 {[#]} Nxf3 $1 21. Qd3 Ne5 22. Qd4 Nf3 23. Qd3 Ne5 24. Qd4 Qb4 25. Bh6 Rfe8 26. f4 Rxc4 $1 27. Bxc4 Qxc4 28. Qe3 (28. Qxc4 {was forced.} Nxc4 29. Rb1) 28... Nd3 29. Rd1 Nc5 30. Rd4 Qxa2+ 31. Kg1 Qb3 $19 32. Qd2 (32. Qxb3 $142 Nxb3 33. Ra4) 32... Qg3+ 33. Qg2 Qxg2+ 34. Kxg2 b5 35. f5 Rb8 36. Bg5 f6 37. Be3 b4 38. Rd1 b3 39. Rb1 a5 0-1

[Event "25th Zadar Open 2018"]
[Site "Zadar"]
[Date "2018.12.19"]
[Round "6"]
[White "Pallitsch, Clemens"]
[Black "Der Manuelian, Haik"]
[Result "1-0"]
[ECO "D37"]
[WhiteElo "2176"]
[BlackElo "2262"]
[Annotator "NA"]
[PlyCount "75"]
[EventDate "2018.12.15"]
[EventType "swiss"]
[EventCountry "CRO"]
[SourceTitle "playchess.com"]
[Source "ChessBase"]
[SourceQuality "1"]
[TimeControl "40/5400+30:1800+30"]

1. d4 d5 2. c4 e6 3. Nf3 Nf6 4. Nc3 Be7 5. Bf4 O-O 6. e3 Nbd7 7. Qc2 c5 8. Rd1 {D37: Queen's Gambit Declined: 5 Bf4} cxd4 9. Rxd4 Qa5 10. Bg3 Nb6 11. Nd2 dxc4 12. Bxc4 Nxc4 13. Nxc4 Qa6 14. O-O Bd7 {[#]} 15. Ne5 $146 ({Predecessor:} 15. Rfd1 Bc6 {½-½ (33) Aronian,L (2805)-Radjabov,T (2744) Ningbo 2011}) 15... Bc6 16. Rfd1 Rfd8 17. h3 Be8 18. b4 Rxd4 19. Rxd4 Rc8 20. Qb2 b6 21. b5 Qa5 (21... Qa3 $15 22. Qxa3 Bxa3) 22. Nc6 $1 Qa3 $1 23. Nxe7+ Qxe7 24. Bd6 Qb7 25. a4 a6 {[#]} 26. Be5 $1 Nd7 $18 27. Bxg7 Kxg7 28. Ne4 Kf8 29. Nd6 Qc7 30. Nxc8 Qxc8 31. bxa6 Qxa6 32. Rh4 Qa5 33. Rxh7 Qxa4 34. Kh2 Qc6 35. Qb4+ Kg8 36. Rh5 Nc5 37. Qh4 Qd6+ 38. f4 1-0

[Event "25th Zadar Open 2018"]
[Site "Zadar"]
[Date "2018.12.19"]
[Round "6.6"]
[White "Cvitan, Ognjen"]
[Black "Rezan, Sasa"]
[Result "1/2-1/2"]
[ECO "D30"]
[WhiteElo "2503"]
[BlackElo "2421"]
[Annotator "ChessBase"]
[PlyCount "40"]
[EventDate "2018.12.15"]
[EventType "swiss"]
[EventCountry "CRO"]
[SourceTitle "playchess.com"]
[Source "ChessBase"]
[SourceQuality "1"]
[TimeControl "40/5400+30:1800+30"]

1. Nf3 {[%emt 0:01:30]} Nf6 {[%emt 0:00:30]} 2. c4 {[%emt 0:01:30]} e6 {[%emt 0:00:30]} 3. g3 {[%emt 0:01:30]} d5 {[%emt 0:01:30]} 4. Bg2 {[%emt 0:00:30]} dxc4 {[%emt 0:02:30]} 5. Qa4+ {[%emt 0:02:30]} c6 {[%emt 0:02:30]} 6. Qxc4 {[%emt 0:00:30]} b5 {[%emt 0:00:00]} 7. Qb3 {[%emt 0:07:30]} Bb7 {[%emt 0:04:00]} 8. d4 {[%emt 0:05:30]} a6 {[%emt 0:02:30]} 9. O-O {[%emt 0:12:30]} c5 {[%emt 0:07:30]} 10. dxc5 {[%emt 0:03:30]} Bxc5 {[%emt 0:05:30]} 11. Be3 {[%emt 0:00:30]} Nbd7 {[%emt 0:06:30]} 12. Bxc5 {[%emt 0:13:30]} Nxc5 {[%emt 0:00:30]} 13. Qe3 {[%emt 0:00:30]} Rc8 {[%emt 0:04:30]} 14. Nbd2 {[%emt 0:02:30]} O-O {[%emt 0:03:30]} 15. Rac1 {[%emt 0:03:30]} Ncd7 {[%emt 0:12:30]} 16. Nb3 {[%emt 0:05:30]} Rxc1 {[%emt 0:06:30]} 17. Rxc1 {[%emt 0:00:30]} Qa8 {[%emt 0:00:30]} 18. Na5 {[%emt 0:07:30]} Be4 {[%emt 0:01:30]} 19. Ne1 {[%emt 0:02:30]} Bxg2 {[%emt 0:01:30]} 20. Nxg2 {[%emt 0:00:30]} Rc8 {[%emt 0:00:30]} 1/2-1/2

[Event "25th Zadar Open 2018"]
[Site "Zadar"]
[Date "2018.12.19"]
[Round "6.10"]
[White "Sutkovic, Damir"]
[Black "Jakic, Ivan"]
[Result "1-0"]
[ECO "A01"]
[WhiteElo "2345"]
[BlackElo "2393"]
[Annotator "NA"]
[PlyCount "107"]
[EventDate "2018.12.15"]
[EventType "swiss"]
[EventCountry "CRO"]
[SourceTitle "playchess.com"]
[Source "ChessBase"]
[SourceQuality "1"]
[TimeControl "40/5400+30:1800+30"]

{[%evp 16,103,-4,-8,32767,-29,-24,-18,-14,-31,-6,-16,0,4,28,32767,32767,-27,-18,-30,-20,-25,0,-14,50,0,16,-62,18,31,27,28,20,0,-28,-14,-20,-37,0,-35,-23,-51,-55,-46,32767,32767,32767,0,32767,32767,32767,0,32767,32767,32767,32767,32767,0,32767,32767,32767,32767,32767,32767,32767,32767,32767,0,-6,0,32767,0,15,32767,32767,32767,32767,32767,0,0,32767,32767,32767,0,32767,32767,1385,1642,1703,1975]} 1. b3 {[%emt 0:03:30]} e5 {[%emt 0:00:30]} 2. Bb2 {[%emt 0:00:30]} Nc6 {[%emt 0:00:00]} 3. e3 {[%emt 0:00:00]} Nf6 {[%emt 0:00:00]} 4. Bb5 {[%emt 0:00:00]} Bd6 {[%emt 0:00:30]} 5. Ne2 {[%emt 0:00:30]} O-O {[%emt 0:01:30] A01: Nimzowitsch-Larsen Opening} 6. Ng3 {[%emt 0:01:30]} Re8 {[%emt 0:00:30]} 7. Bxc6 $146 {[%emt 0:01:30]} ({Predecessor:} 7. Nc3 Bf8 8. Bxc6 bxc6 9. d4 exd4 10. Qxd4 c5 11. Qf4 Rb8 12. O-O-O d5 13. Nce2 Rb6 14. Nf5 d4 15. exd4 Nd5 16. Qf3 Bxf5 17. Qxf5 Rf6 18. Qg4 Rxf2 {0-1 (18) Zavgorodniy,S (2430)-Korobov,A (2664) Batumi 2018}) 7... dxc6 {[%emt 0:01:30]} 8. e4 {[%emt 0:01:30]} Bc5 {[%emt 0:06:30]} 9. h3 {[%emt 0:03:30]} a5 {[%emt 0:13:30]} 10. d3 {[%emt 0:04:30]} a4 {[%emt 0:02:30]} 11. O-O {[%emt 0:01:30]} Be6 {[%emt 0:04:30]} 12. Nd2 {[%emt 0:04:30]} Nd7 {[%emt 0:11:30]} 13. Nf3 {[%emt 0:03:30]} a3 {[%emt 0:02:30]} 14. Bc3 {[%emt 0:02:30]} f6 {[%emt 0:06:30]} 15. Qe2 {[%emt 0:06:30]} Bd6 {[%emt 0:02:30]} 16. Nh4 {[%emt 0:03:30]} g6 {[%emt 0:02:30]} 17. Nf3 {[%emt 0:10:30]} c5 {[%emt 0:00:30]} 18. Bd2 {[%emt 0:06:30]} Bf7 {[%emt 0:02:30]} 19. Nh2 {[%emt 0:04:30]} Nf8 {[%emt 0:01:30]} 20. Rae1 {[%emt 0:05:30]} Ne6 {[%emt 0:00:30]} 21. Qd1 {[%emt 0:00:00]} (21. Ng4 $11) 21... Nf4 {[%emt 0:06:30]} 22. Ne2 {[%emt 0:01:00]} Be6 {[%emt 0:10:30]} 23. Nxf4 {[%emt 0:12:30]} exf4 {[%emt 0:00:30]} 24. Qc1 {[%emt 0:00:30]} g5 {[%emt 0:00:30]} 25. Bc3 {[%emt 0:01:30]} Be5 {[%emt 0:02:30]} 26. Qa1 {[%emt 0:01:30]} Bd7 {[%emt 0:06:38]} 27. Nf3 {[%emt 0:01:28]} Qe7 {[%emt 0:00:22]} 28. d4 {[%emt 0:01:49]} cxd4 {[%emt 0:00:50]} 29. Bxd4 {[%emt 0:02:06]} c5 {[%emt 0:03:49]} 30. Bxe5 {[%emt 0:00:28]} fxe5 {[%emt 0:00:05]} 31. Rd1 {[%emt 0:03:02]} Bc6 {[%emt 0:01:21]} 32. Rfe1 {[%emt 0:01:32]} h5 {[%emt 0:01:40]} 33. g3 {[%emt 0:06:58]} fxg3 {[%emt 0:01:18]} 34. fxg3 {[%emt 0:00:07]} Qf6 {[%emt 0:00:33]} 35. Rd3 {[%emt 0:02:09]} Re7 {[%emt 0:04:07]} 36. Nd2 {[%emt 0:03:05]} Qe6 {[%emt 0:00:47]} 37. Kg2 {[%emt 0:01:16]} Rf8 {[%emt 0:00:47]} 38. Rf1 {[%emt 0:00:09]} Ref7 {[%emt 0:00:51]} 39. Rxf7 {[%emt 0:00:17]} Qxf7 {[%emt 0:00:09]} 40. Qe1 {[%emt 0:00:00]} g4 {[%emt 0:00:00]} 41. h4 {[%emt 0:13:04]} Qf6 {[%emt 0:15:34]} 42. Kg1 {[%emt 0:03:58]} Rd8 {[%emt 0:01:26]} 43. Qe3 {[%emt 0:04:21]} Bb5 {[%emt 0:03:56]} 44. c4 {[%emt 0:05:58]} Bc6 {[%emt 0:00:33]} 45. Rxd8+ {[%emt 0:00:17]} Qxd8 {[%emt 0:00:04]} 46. Kf2 {[%emt 0:00:05]} Qd4 {[%emt 0:03:12]} 47. Ke2 {[%emt 0:02:57]} Qb2 {[%emt 0:04:51]} 48. Qg5+ {[%emt 0:00:24]} Kf8 {[%emt 0:00:17]} 49. Qxh5 {[%emt 0:02:24]} Bd7 {[%emt 0:08:17]} 50. Qg5 {[%emt 0:02:00]} Qxa2 {[%emt 0:00:21]} 51. h5 {[%emt 0:00:30]} Qa1 $18 {[%emt 0:00:38]} 52. h6 {[%emt 0:00:11]} Qh1 {[%emt 0:00:23]} 53. Qg7+ {[%emt 0:00:06]} Ke8 {[%emt 0:00:08]} 54. h7 {[%emt 0:00:06]} 1-0

[Event "25th Zadar Open 2018"]
[Site "Zadar"]
[Date "2018.12.19"]
[Round "6.11"]
[White "Nielsen, Rogvi Egilstoft"]
[Black "Bukal, Vladimir Jr."]
[Result "0-1"]
[ECO "C03"]
[WhiteElo "2339"]
[BlackElo "2390"]
[Annotator "NA"]
[PlyCount "78"]
[EventDate "2018.12.15"]
[EventType "swiss"]
[EventCountry "CRO"]
[SourceTitle "playchess.com"]
[Source "ChessBase"]
[SourceQuality "1"]
[TimeControl "40/5400+30:1800+30"]

{[%evp 14,65,7,0,18,15,13,14,25,7,25,4,8,10,15,13,23,32767,15,-18,-5,-24,0,-27,32767,32767,32767,32767,-29,-65,0,0,23,0,109,74,32767,32767,46,38,32767,0,32767,77,32767,-79,0,0,32767,-10,-26,-13,-25,-28]} 1. e4 {[%emt 0:00:30]} e6 {[%emt 0:00:30]} 2. d4 {[%emt 0:00:30]} d5 {[%emt 0:00:00]} 3. Nd2 {[%emt 0:00:30]} h6 {[%emt 0:00:00] C03: French Tarrasch: Unusual Black 3rd moves} (3... c5 4. exd5 Qxd5 5. Ngf3 cxd4 6. Bc4 Qd6 7. O-O Nf6 8. Nb3 Nc6 9. Nbxd4 Nxd4 10. Nxd4 a6 11. Re1 Qc7 12. Bf1 Be7 13. Qf3 O-O 14. Bf4 Bd6 15. Bxd6 Qxd6 16. Rad1 Qc7 17. c4 Rb8 18. Qg3 Qxg3 19. hxg3 Bd7 {½-½ (61) Karjakin,S (2773)-Duda,J (2737) chess.com INT 2018}) 4. c3 {[%emt 0:01:30]} c5 {[%emt 0:00:00]} 5. exd5 {[%emt 0:00:30]} exd5 {[%emt 0:00:00]} 6. Ngf3 {[%emt 0:00:30]} Nf6 {[%emt 0:00:30]} 7. Bd3 {[%emt 0:01:30]} c4 {[%emt 0:15:30]} 8. Be2 {[%emt 0:04:30]} Nc6 {[%emt 0:01:30]} 9. b3 {[%emt 0:00:30]} cxb3 {[%emt 0:09:30]} 10. axb3 {[%emt 0:00:30]} Bf5 {[%emt 0:00:30]} 11. Ne5 $146 {[%emt 0:03:30]} ({Predecessor:} 11. O-O) 11... Qc7 {[%emt 0:06:30]} 12. O-O {[%emt 0:19:30]} Bd6 {[%emt 0:02:30]} 13. f4 {[%emt 0:00:30]} O-O {[%emt 0:00:30]} 14. Bb2 {[%emt 0:03:30]} Ne4 {[%emt 0:04:30]} 15. Bf3 {[%emt 0:07:30]} f6 {[%emt 0:05:30]} 16. Nxc6 {[%emt 0:07:30]} bxc6 {[%emt 0:00:30]} 17. Bxe4 {[%emt 0:10:30]} dxe4 {[%emt 0:00:30]} 18. g3 {[%emt 0:00:30]} Bh3 {[%emt 0:18:30]} 19. Re1 {[%emt 0:00:30]} f5 {[%emt 0:00:00]} 20. Qe2 {[%emt 0:00:30]} Rf6 {[%emt 0:01:00]} 21. Kh1 {[%emt 0:04:30]} Kh7 {[%emt 0:05:30]} ({Black should try} 21... h5 $15) 22. Ba3 {[%emt 0:04:30]} Bxa3 {[%emt 0:07:30]} 23. Rxa3 {[%emt 0:00:30]} g5 {[%emt 0:00:30]} (23... c5 $11) 24. fxg5 {[%emt 0:03:30]} hxg5 {[%emt 0:01:02]} 25. Qe3 {[%emt 0:03:30]} Qg7 {[%emt 0:11:37]} 26. Nc4 {[%emt 0:01:30]} c5 {[%emt 0:04:57]} 27. d5 {[%emt 0:03:58]} Re8 {[%emt 0:01:04]} 28. Qxc5 {[%emt 0:02:00]} a6 {[%emt 0:01:26]} 29. Nd6 {[%emt 0:08:26] [#]} (29. Nd2 $1 $11) 29... Qf8 {[%emt 0:00:25]} ({Better is} 29... Re7 $1 $17 {[%cal Re7c7]} 30. Nc4 (30. Rxa6 f4 $15) 30... f4) 30. Rxa6 {[%emt 0:02:54]} ({Avoid the trap} 30. Nxe8 $2 Qxc5 31. Nxf6+ Kg7 $19) 30... Kg6 {[%emt 0:01:44]} 31. Rc6 {[%emt 0:03:33]} (31. Nxe8 Qxc5 32. Nxf6 (32. Rxf6+ $2 {loses.} Kh7 $19) 32... Kg7) 31... Rd8 {[%emt 0:00:15]} 32. Nc4 {[%emt 0:00:41]} Qxc5 {[%emt 0:00:54]} 33. Rxc5 $11 {[%emt 0:00:02]} f4 {[%emt 0:00:51]} 34. gxf4 {[%emt 0:01:04]} gxf4 {[%emt 0:00:01]} 35. Ne5+ {[%emt 0:01:06]} Kh6 {[%emt 0:00:54]} 36. Rxe4 {[%emt 0:00:41]} Rg8 {[%emt 0:00:02]} 37. Re1 {[%emt 0:00:31]} f3 {[%emt 0:00:35]} 38. Rc6 {[%emt 0:00:32]} Bg2+ {[%emt 0:00:15]} 39. Kg1 {[%emt 0:00:08]} f2# {[%emt 0:00:01]} 0-1